bitfinex/quotes_SOLUSD_20260311
["timestamp","ask_amount","ask_price","bid_price","bid_amount"]
[1773230082273,2.0248531,84.559,84.53,3.58586419]
[1773230083578,2.0248531,84.559,84.531,1.9365212]
[1773230083758,2.0248531,84.559,84.53,3.58195819]
[1773230084677,2.0248531,84.559,84.52,3.58195819]
[1773230085351,2.0248531,84.559,84.52,5.51847939]
[1773230085759,2.0248531,84.559,84.521,1.9365212]
[1773230086873,2.0248531,84.559,84.53,3.58195819]
[1773230088972,2.0248531,84.559,84.53,5.51847939]
[1773230089155,2.0248531,84.559,84.531,1.9365212]
[1773230089473,2.0248531,84.559,84.53,3.58195819]
[1773230089677,2.0248531,84.559,84.526,1.9365212]
[1773230089874,2.0248531,84.559,84.531,1.94828754]
[1773230093478,2.0248531,84.559,84.502,3.69383402]
[1773230093479,1.99738143,84.539,84.486,1.94828754]
[1773230093681,1.99738143,84.539,84.511,1.94828754]
[1773230094668,1.99738143,84.551,84.521,1.94828754]
[1773230094867,1.99738143,84.549,84.521,1.94828754]
[1773230100788,1.99738143,84.549,84.51,3.58195819]
[1773230100990,2.08629267,84.539,84.506,2.08589268]
[1773230101184,2.08629267,84.539,84.5,3.58195819]
[1773230101693,2.08629267,84.539,84.501,2.08589268]
[1773230102202,2.08629267,84.539,84.511,2.08589268]
[1773230102581,2.08629267,84.587,84.531,2.08589268]
[1773230102790,2.08629267,84.569,84.531,2.08589268]
[1773230104698,2.08629267,84.576,84.541,2.08589268]
[1773230104903,2.22845424,84.589,84.551,2.08589268]
[1773230105299,2.08629267,84.589,84.551,2.08589268]
[1773230107198,2.08629267,84.579,84.54,3.58195819]
[1773230107389,2.08629267,84.569,84.534,2.08589268]
[1773230107584,2.08629267,84.559,84.523,2.08589268]
[1773230107794,2.08629267,84.559,84.45,10.79993475]
[1773230107795,2.08629267,84.539,84.505,2.08589268]
[1773230108200,2.08629267,84.553,84.521,2.08589268]
[1773230108597,2.08629267,84.563,84.54,5.66785087]
[1773230108795,2.08629267,84.563,84.531,2.08589268]
[1773230112391,2.08629267,84.563,84.54,3.58195819]
[1773230112789,2.08629267,84.563,84.531,2.08589268]
[1773230115291,2.08629267,84.559,84.521,2.08589268]
[1773230115499,2.08629267,84.549,84.515,2.08589268]
[1773230115798,2.08629267,84.549,84.521,2.08589268]
[1773230116000,2.08629267,84.559,84.531,2.08589268]
[1773230117709,2.08629267,84.569,84.531,2.08589268]
[1773230117906,2.08629267,84.569,84.54,3.58195819]
[1773230118104,2.08629267,84.579,84.55,3.58195819]
[1773230118311,2.08629267,84.599,84.561,2.08589268]
[1773230118508,2.22845424,84.598,84.561,2.08589268]
[1773230118716,2.22845424,84.598,84.502,4.82477569]
[1773230118717,2.22845424,84.589,84.505,3.69383402]
[1773230118897,2.08629267,84.579,84.54,3.58195819]
[1773230121813,2.08629267,84.579,84.54,3.66793247]
[1773230122112,2.08629267,84.579,84.541,0.08597428]
[1773230122417,10.76446781,84.65,84.53,3.58195819]
[1773230122418,2.11810579,84.569,84.53,3.58195819]
[1773230122802,2.11810579,84.569,84.531,0.08598118]
[1773230123923,2.11810579,84.559,84.52,3.58195819]
[1773230124129,2.11810579,84.559,84.521,0.08598801]
[1773230129799,2.11810579,84.559,84.531,0.08244523]
[1773230130001,2.11810579,84.569,84.531,0.08244523]
[1773230131516,2.11810579,84.579,84.55,3.58195819]
[1773230131822,2.11810579,84.579,84.549,0.08187827]
[1773230132319,2.11810579,84.579,84.551,0.08131783]
[1773230132902,3.58195819,84.59,84.551,0.08131783]
[1773230133102,2.11810579,84.589,84.551,0.08131783]
[1773230136108,2.11810579,84.589,84.561,0.0791397]
[1773230137913,2.11810579,84.589,84.56,3.58195819]
[1773230138126,2.11810579,84.579,84.55,3.58195819]
[1773230138312,2.11810579,84.579,84.546,0.0780878]
[1773230138825,2.11810579,84.569,84.54,0.0775709]
[1773230139326,2.11810579,84.569,84.54,3.65952909]
[1773230140527,3.58195819,84.56,84.53,3.58195819]
[1773230140724,2.11810579,84.559,84.53,3.58195819]
[1773230140924,2.11810579,84.559,84.531,0.07655483]
[1773230141133,2.11810579,84.569,84.531,0.07655483]
[1773230141335,2.11810579,84.569,84.514,0.14216157]
[1773230141336,2.11810579,84.569,84.541,0.07655483]
[1773230141824,2.11810579,84.579,84.541,0.07655483]
[1773230142031,2.11810579,84.589,84.551,0.07605553]
[1773230143023,2.11810579,84.569,84.541,0.07556197]
[1773230144522,2.11810579,84.589,84.551,0.07507408]
[1773230147023,2.11810579,84.589,84.524,0.14216157]
[1773230147024,2.11810579,84.589,84.561,0.07364376]
[1773230147230,2.11810579,84.589,84.551,0.07364376]
[1773230148527,2.11810579,84.589,84.56,3.58194177]
[1773230149231,2.11810579,84.589,84.557,0.0731779]
[1773230151431,2.08593102,84.579,84.55,0.07136735]
[1773230152133,2.08593102,84.579,84.551,0.07092764]
[1773230152438,2.08593102,84.589,84.551,0.07092764]
[1773230154044,2.08593102,84.579,84.54,3.58194177]
[1773230154342,2.08593102,84.579,84.541,0.07006331]
[1773230154522,2.08593102,84.579,84.55,3.58194177]
[1773230155135,2.08593102,84.579,84.55,3.65116048]
[1773230155550,2.08593102,84.569,84.542,62.3]
[1773230155848,2.08593102,84.569,84.534,0.06921871]
[1773230156044,2.08593102,84.569,84.535,62.3]
[1773230157053,2.08593102,84.569,84.54,3.58194177]
[1773230157554,2.08593102,84.569,84.541,0.06839341]
[1773230161145,3.58194177,84.58,84.523,3.69383402]
[1773230161146,2.08593102,84.58,84.551,0.06679892]
[1773230161345,3.58194177,84.59,84.551,0.06679892]
[1773230161548,2.08593102,84.586,84.561,0.06679892]
[1773230162253,2.08593102,84.586,84.551,0.06641168]
[1773230163144,2.08593102,84.579,84.542,0.06602889]
[1773230163855,2.08593102,84.579,84.54,3.58194177]
[1773230164060,2.08593102,84.579,84.541,0.06565049]
[1773230164641,2.08593102,84.579,84.54,3.58194177]
[1773230166260,2.08593102,84.579,84.54,3.64684846]
[1773230166966,2.08593102,84.579,84.54,3.64648295]
[1773230167167,2.08593102,84.579,84.541,0.06454118]
[1773230173871,2.08593102,84.579,84.535,0.06209752]
[1773230174184,2.08593102,84.579,84.541,0.06209752]
[1773230176773,2.08593102,84.586,84.561,0.06143486]
[1773230179272,2.08593102,84.586,84.56,3.58194177]
[1773230181374,2.08593102,84.586,84.555,0.06046915]
[1773230181680,2.08593102,84.586,84.56,3.64117428]
[1773230181970,2.08593102,84.579,84.537,0.05923251]
[1773230182177,2.08593102,84.579,84.541,0.05923251]
[1773230183179,2.08593102,84.579,84.55,3.58194177]
[1773230183478,2.08593102,84.579,84.551,0.05893218]
[1773230184470,2.08593102,84.579,84.545,0.0586353]
[1773230185180,2.08593102,84.579,84.55,3.58194177]
[1773230185578,2.08593102,84.579,84.54,3.58194177]
[1773230185763,2.08593102,84.569,84.531,0.05805172]
[1773230185962,2.08593102,84.569,84.54,3.58194177]
[1773230189780,2.08593102,84.559,84.512,0.05692425]
[1773230190078,2.08593102,84.559,84.53,3.58194177]
[1773230190479,2.08593102,84.559,84.53,3.63886602]
[1773230190680,2.08593102,84.559,84.53,3.58194177]
[1773230190881,2.08593102,84.575,84.55,3.58194177]
[1773230191382,2.08593102,84.575,84.55,3.6385922]
[1773230191584,2.08593102,84.575,84.551,0.05665043]
[1773230196684,2.08593102,84.575,84.541,0.05532778]
[1773230196884,2.08593102,84.575,84.55,3.58194177]
[1773230200690,2.08593102,84.575,84.55,3.63602114]
[1773230201183,2.08593102,84.575,84.551,0.05407937]
[1773230204073,2.08593102,84.575,84.54,3.58194177]
[1773230204280,2.08593102,84.569,84.54,3.58194177]
[1773230205390,2.08593102,84.569,84.54,3.63507305]
[1773230205692,2.08593102,84.569,84.54,3.63467619]
[1773230206286,2.08593102,84.569,84.54,3.58154491]
[1773230206487,2.08593102,84.569,84.504,0.14216157]
[1773230206488,2.08593102,84.547,84.493,4.78746929]
[1773230206692,2.08593102,84.547,84.44,0.1]
[1773230206693,2.06708851,84.509,84.461,17.37437213]
[1773230206895,3.69383402,84.505,84.426,2.11226773]
[1773230207070,3.58154491,84.44,84.426,2.11226773]
[1773230207275,3.58154491,84.48,84.426,2.11226773]
[1773230207472,47.26352854,84.497,84.431,2.11226773]
[1773230207684,3.58154491,84.49,84.441,2.11226773]
[1773230207891,3.58154491,84.49,84.45,3.58154491]
[1773230208075,0.14216157,84.496,84.451,2.11226773]
[1773230208273,3.58154491,84.47,84.453,2.11226773]
[1773230208472,3.58154491,84.48,84.453,2.11226773]
[1773230208677,0.14216157,84.496,84.461,2.11226773]
[1773230209180,47.26352854,84.497,84.471,2.11226773]
[1773230210195,36.54866276,84.497,84.483,2.01395635]
[1773230210496,31.47922022,84.497,84.491,2.01395635]
[1773230210691,30.63519769,84.497,84.491,2.01395635]
[1773230210875,21.88750447,84.517,84.491,2.01395635]
[1773230211074,3.58154491,84.6,84.51,3.58154491]
[1773230211075,2.11182543,84.542,84.51,3.58154491]
[1773230212081,2.11182543,84.569,84.51,3.58154491]
[1773230212286,2.11182543,84.569,84.53,3.58154491]
[1773230212487,2.11182543,84.559,84.52,3.58154491]
[1773230212896,2.11182543,84.559,84.53,3.58154491]
[1773230214398,2.11182543,84.549,84.45,3.58154491]
[1773230214700,2.11182543,84.529,84.451,2.08]
[1773230214996,2.11182543,84.529,84.45,3.58154491]
[1773230214997,2.11182543,84.519,84.48,3.58154491]
[1773230216906,2.11182543,84.529,84.5,3.58154491]
[1773230217604,2.11182543,84.529,84.5,8.9615512]
[1773230222908,2.11182543,84.529,84.473,0.14216157]
[1773230223108,2.11182543,84.529,84.5,8.9615512]
[1773230223709,2.11182543,84.529,84.51,8.9615512]
[1773230224091,2.11182543,84.529,84.5,8.9615512]
[1773230224292,2.11182543,84.529,84.51,8.9615512]
[1773230227615,2.11182543,84.519,84.49,8.9615512]
[1773230227796,2.11182543,84.539,84.472,3.69383402]
[1773230229101,2.11182543,84.539,84.51,8.9615512]
[1773230234207,2.11182543,84.539,84.52,8.9615512]
[1773230234695,2.11182543,84.539,84.486,3.69383402]
[1773230234900,2.11182543,84.499,84.48,44.00203645]
[1773230235102,8.9615512,84.49,84.48,5.28437658]
[1773230235308,8.9615512,84.49,84.48,4.38411556]
[1773230235606,8.9615512,84.49,84.461,2.01043373]
[1773230235808,7.84994601,84.49,84.461,2.01043373]
[1773230237119,0.14216157,84.509,84.471,2.03230849]
[1773230237301,7.84994601,84.51,84.471,2.03230849]
[1773230237919,7.84994601,84.49,84.461,2.03230849]
[1773230238325,7.84994601,84.5,84.461,2.03230849]
[1773230239126,7.84994601,84.48,84.451,2.03230849]
[1773230239320,7.84994601,84.49,84.461,2.03230849]
[1773230240205,7.84994601,84.5,84.461,2.03230849]
[1773230241220,7.84994601,84.51,84.471,2.03230849]
[1773230241922,7.84994601,84.5,84.471,2.03230849]
[1773230242929,7.84994601,84.49,84.471,2.03230849]
[1773230243227,0.14216157,84.513,84.471,2.03230849]
[1773230243228,7.84994601,84.5,84.471,2.03230849]
[1773230244818,7.84994601,84.51,84.471,2.03230849]
[1773230245015,0.14216157,84.519,84.481,2.03230849]
[1773230245322,0.14216157,84.519,84.444,0.14216157]
[1773230245323,1.88784053,84.519,84.476,2.08]
[1773230245528,1.88784053,84.519,84.48,7.84994601]
[1773230245925,1.88784053,84.525,84.49,7.84994601]
[1773230246432,1.88784053,84.519,84.483,2.08]
[1773230246732,7.8340604,84.539,84.476,2.08]
[1773230246733,1.88784053,84.499,84.476,2.08]
[1773230246916,1.88784053,84.509,84.476,2.08]
[1773230247227,1.88784053,84.509,84.477,1.96891336]
[1773230247618,1.88784053,84.509,84.48,7.84994601]
[1773230248019,1.88784053,84.509,84.477,1.96891336]
[1773230248420,1.88784053,84.499,84.476,2.08]
[1773230249535,1.88784053,84.509,84.477,1.96891336]
[1773230249838,1.88784053,84.509,84.476,2.08]
[1773230250137,1.88784053,84.509,84.476,4.04891336]
[1773230250533,1.88784053,84.509,84.477,1.96891336]
[1773230250833,1.88784053,84.519,84.491,1.96891336]
[1773230251032,1.88784053,84.519,84.48,7.84994601]
[1773230253115,1.88784053,84.519,84.481,1.96891336]
[1773230253937,1.88784053,84.519,84.483,1.96891336]
[1773230256234,1.88784053,84.519,84.491,1.96891336]
[1773230256946,1.88784053,84.527,84.501,1.96891336]
[1773230257141,1.88784053,84.527,84.495,2.08]
[1773230259321,1.88784053,84.534,84.501,1.96891336]
[1773230260147,7.8340604,84.539,84.511,1.96891336]
[1773230260331,1.88784053,84.559,84.521,1.96891336]
[1773230260832,1.88784053,84.549,84.52,2.08]
[1773230262142,1.88784053,84.549,84.521,1.96891336]
[1773230265553,1.88784053,84.549,84.521,64.26891336]
[1773230265749,1.88784053,84.549,84.522,1.96891336]
[1773230266845,1.88784053,84.549,84.52,5.21645705]
[1773230266846,1.88784053,84.57,84.53,3.13645705]
[1773230267038,1.88784053,84.57,84.523,62.3]
[1773230267039,1.88784053,84.57,84.541,1.96891336]
[1773230269235,7.8862301,84.579,84.541,1.96891336]
[1773230269236,1.88784053,84.578,84.541,1.96891336]
[1773230271047,1.88784053,84.578,84.551,1.9161057]
[1773230271431,1.88784053,84.578,84.542,1.9161057]
[1773230273455,7.8862301,84.579,84.551,1.9161057]
[1773230273758,7.8862301,84.579,84.552,1.9161057]
[1773230274337,9.7976059,84.579,84.552,1.9161057]
[1773230274738,1.9113758,84.578,84.552,1.9161057]
[1773230277856,1.9113758,84.578,84.552,2.08]
[1773230278454,1.9113758,84.578,84.553,1.86030277]
[1773230281943,1.9113758,84.578,84.554,2.08]
[1773230282144,1.9113758,84.578,84.555,1.86030277]
[1773230282345,1.92852123,84.589,84.561,1.86030277]
[1773230283056,1.92852123,84.589,84.562,2.08]
[1773230283245,1.92852123,84.589,84.564,1.86030277]
[1773230284144,1.92852123,84.579,84.552,2.08]
[1773230284961,1.92852123,84.579,84.553,41.39415514]
[1773230285170,0.14216157,84.599,84.561,1.86030277]
[1773230285869,11.96263226,84.599,84.561,1.86030277]
[1773230286087,3.133755,84.59,84.561,1.86030277]
[1773230286449,3.133755,84.59,84.563,1.86030277]
[1773230286647,0.14216157,84.599,84.563,1.86030277]
[1773230286853,0.14216157,84.597,84.563,1.86030277]
[1773230287161,1.92852123,84.589,84.562,41.38974952]
[1773230287347,1.92852123,84.589,84.562,11.82564272]
[1773230288067,1.92852123,84.589,84.563,1.86030277]
[1773230288450,1.92852123,84.589,84.564,41.38877062]
[1773230288651,1.92852123,84.589,84.565,1.86030277]
[1773230289258,3.133755,84.59,84.564,41.38877062]
[1773230289459,1.92852123,84.589,84.564,41.38877062]
[1773230289849,1.92852123,84.589,84.565,26.22034618]
[1773230290249,1.92852123,84.589,84.565,28.08064895]
[1773230290447,1.92852123,84.589,84.567,41.38730236]
[1773230290853,1.92852123,84.589,84.567,43.24760513]
[1773230291652,1.92852123,84.589,84.568,1.86030277]
[1773230292561,1.92852123,84.589,84.569,11.82466388]
[1773230293586,1.92852123,84.589,84.57,1.86030277]
[1773230294954,1.92852123,84.589,84.569,41.38632358]
[1773230296282,1.92852123,84.589,84.569,43.24662635]
[1773230297766,59.07470734,84.639,84.581,1.86030277]
[1773230297956,0.14216157,84.617,84.581,1.86030277]
[1773230298368,0.14216157,84.617,84.583,1.86030277]
[1773230299365,0.14216157,84.617,84.584,2.08]
[1773230299564,0.14216157,84.617,84.584,3.9331304]
[1773230299761,1.7442665,84.614,84.584,2.08]
[1773230299964,1.7442665,84.614,84.585,1.8531304]
[1773230300256,1.7442665,84.614,84.586,2.08]
[1773230300669,11.81851488,84.613,84.587,11.82214761]
[1773230300977,1.7442665,84.612,84.587,13.67527801]
[1773230301272,1.7442665,84.612,84.587,1.8531304]
[1773230301470,1.7442665,84.612,84.586,2.08]
[1773230301867,1.7442665,84.612,84.587,1.8531304]
[1773230302770,1.7442665,84.612,84.588,1.8531304]
[1773230304084,9.46371497,84.618,84.591,1.8531304]
[1773230304684,0.2,84.62,84.591,1.8531304]
[1773230305274,3.133755,84.61,84.592,11.82144883]
[1773230305481,1.7442665,84.609,84.593,2.08]
[1773230306896,1.7442665,84.618,84.593,3.9331304]
[1773230307195,1.7442665,84.616,84.594,11.82116935]
[1773230307586,1.7442665,84.609,84.593,2.08]
[1773230307787,1.7442665,84.609,84.587,26.22034618]
[1773230307992,1.7442665,84.609,84.587,38.04237739]
[1773230308192,1.7442665,84.609,84.588,2.08]
[1773230309192,13.56339768,84.609,84.588,2.08]
[1773230309396,13.56339768,84.609,84.589,13.67499849]
[1773230309611,0.35693156,84.619,84.59,1.8531304]
[1773230310272,0.35693156,84.619,84.592,1.8531304]
[1773230310777,3.333755,84.62,84.594,1.8531304]
[1773230310778,0.2,84.62,84.594,1.8531304]
[1773230310980,0.2,84.62,84.601,1.8531304]
[1773230312879,0.2,84.62,84.602,11.82005153]
[1773230313079,0.2,84.62,84.603,1.8531304]
[1773230313279,0.35014195,84.609,84.585,2.08]
[1773230313475,11.81767688,84.619,84.586,1.8531304]
[1773230313693,3.333755,84.62,84.586,1.8531304]
[1773230313897,3.333755,84.62,84.585,2.08]
[1773230313898,0.2,84.62,84.591,1.8531304]
[1773230314900,0.2,84.62,84.593,1.8531304]
[1773230318100,0.2,84.62,84.595,1.8531304]
[1773230321504,3.333755,84.62,84.597,1.8531304]
[1773230322295,11.81767688,84.619,84.597,1.8531304]
[1773230322497,3.333755,84.62,84.597,1.8531304]
[1773230323613,3.333755,84.62,84.599,1.8531304]
[1773230324599,3.333755,84.62,84.6,11.82033096]
[1773230324806,3.333755,84.62,84.601,1.8531304]
[1773230325001,0.2,84.62,84.601,1.8531304]
[1773230325210,0.2,84.62,84.603,1.8531304]
[1773230327823,0.2,84.62,84.605,1.8531304]
[1773230328391,3.32984068,84.63,84.61,3.12984068]
[1773230328392,0.2,84.63,84.61,3.12984068]
[1773230328596,0.2,84.63,84.611,1.8531304]
[1773230329021,3.32984068,84.64,84.611,1.8531304]
[1773230329022,0.2,84.64,84.611,1.8531304]
[1773230329710,0.2,84.64,84.613,1.86603765]
[1773230330805,0.2,84.64,84.614,2.08]
[1773230331005,0.2,84.64,84.615,1.86603765]
[1773230331612,0.2,84.64,84.62,3.12984068]
[1773230331810,0.2,84.64,84.622,1.86603765]
[1773230332202,7.5988284,84.649,84.622,1.86603765]
[1773230332722,1e-08,84.649,84.631,1.86603765]
[1773230333019,0.2,84.65,84.631,1.86603765]
[1773230333913,0.2,84.65,84.633,1.86603765]
[1773230334223,0.70486211,84.66,84.636,1.86603765]
[1773230334401,11.81209322,84.659,84.637,2.08]
[1773230334597,0.50486211,84.658,84.637,2.08]
[1773230335905,12.3119042,84.657,84.637,2.08]
[1773230336103,0.49953193,84.657,84.638,11.81502398]
[1773230336305,0.2,84.66,84.64,3.12984068]
[1773230336510,0.2,84.66,84.641,1.78819484]
[1773230337010,0.2,84.67,84.638,11.81502398]
[1773230337011,0.2,84.67,84.65,3.12984068]
[1773230337206,0.2,84.67,84.651,1.78819484]
[1773230338023,0.2,84.67,84.653,1.78819484]
[1773230338226,0.69607973,84.668,84.642,2.08]
[1773230338724,3.12984068,84.66,84.642,2.08]
[1773230338924,0.69438331,84.663,84.642,3.86819484]
[1773230339519,0.69438331,84.663,84.643,1.78819484]
[1773230339820,0.69438331,84.663,84.644,2.08]
[1773230340038,0.69270483,84.659,84.629,29.54041808]
[1773230340329,0.69270483,84.659,84.631,1.78819484]
[1773230340506,0.69270483,84.659,84.632,2.08]
[1773230341420,0.69104564,84.663,84.633,1.78819484]
[1773230341626,3.12984068,84.66,84.633,1.78819484]
[1773230341827,0.6894055,84.639,84.613,1.78819484]
[1773230342028,0.6894055,84.645,84.616,1.78819484]
[1773230342921,11.81418647,84.644,84.616,1.78819484]
[1773230343318,0.6894055,84.645,84.616,1.78819484]
[1773230344431,0.6894055,84.645,84.618,1.78819484]
[1773230344612,3.12984068,84.65,84.618,1.78819484]
[1773230345030,3.8140433,84.65,84.618,1.78819484]
[1773230345935,0.68250802,84.649,84.62,1.78819484]
[1773230346747,0.68083288,84.648,84.62,1.78819484]
[1773230347032,0.68083288,84.648,84.621,26.22034618]
[1773230347231,0.68083288,84.639,84.621,25.5395133]
[1773230347433,3.12984068,84.63,84.614,2.08]
[1773230347641,3.12984068,84.63,84.612,2.08]
[1773230347933,14.94608929,84.63,84.612,2.08]
[1773230348719,14.94608929,84.63,84.609,24.99901729]
[1773230348928,14.94608929,84.63,84.61,2.08]
[1773230351034,3.12984068,84.63,84.612,1.88743118]
[1773230353433,3.12984068,84.63,84.613,13.70594606]
[1773230357423,3.12984068,84.63,84.614,2.08]
[1773230358148,11.81540393,84.636,84.616,1.88743118]
[1773230358352,3.12984068,84.64,84.616,1.88743118]
[1773230358555,11.81488439,84.639,84.616,1.88743118]
[1773230358724,3.12984068,84.63,84.614,2.08]
[1773230358926,3.12984068,84.62,84.605,1.88743118]
[1773230359245,3.12984068,84.62,84.606,2.08]
[1773230359935,3.12984068,84.63,84.607,1.88743118]
[1773230360522,11.81628047,84.629,84.609,1.88743118]
[1773230360946,3.12984068,84.63,84.609,1.88743118]
[1773230361162,3.12984068,84.63,84.611,1.88743118]
[1773230361342,3.12984068,84.64,84.611,1.88743118]
[1773230362736,3.12984068,84.64,84.613,1.88743118]
[1773230363238,11.81488439,84.639,84.613,1.88743118]
[1773230365151,11.81488439,84.639,84.615,1.88743118]
[1773230365352,3.12984068,84.64,84.615,1.88743118]
[1773230366254,3.12984068,84.64,84.614,41.36431322]
[1773230366255,3.12984068,84.64,84.617,1.88743118]
[1773230366648,3.12984068,84.64,84.618,3.96743118]
[1773230366844,3.12984068,84.64,84.619,1.88743118]
[1773230367460,3.12984068,84.63,84.611,1.88743118]
[1773230367644,3.12984068,84.63,84.615,2.08]
[1773230368145,3.12984068,84.62,84.606,2.08]
[1773230368349,3.12984068,84.62,84.598,11.82057827]
[1773230368547,3.12984068,84.62,84.6,1.88743118]
[1773230370758,11.81767688,84.619,84.6,1.88743118]
[1773230371748,11.81767688,84.619,84.601,11.82019125]
[1773230371950,3.12984068,84.62,84.601,13.70762243]
[1773230372341,11.81767688,84.619,84.601,13.70762243]
[1773230372552,3.12984068,84.62,84.601,13.70762243]
[1773230372860,14.94740081,84.62,84.601,13.70762243]
[1773230373564,3.12984068,84.61,84.601,1.88743118]
[1773230373862,14.94740081,84.62,84.601,1.88743118]
[1773230374065,3.12984068,84.62,84.602,36.81906882]
[1773230374561,14.94747103,84.62,84.602,24.99901729]
[1773230375468,14.94747103,84.62,84.603,1.88743118]
[1773230375846,14.94747103,84.62,84.603,13.707343]
[1773230376047,14.94747103,84.62,84.603,1.88743118]
[1773230376654,3.12984068,84.61,84.602,24.99901729]
[1773230376964,44.49614885,84.61,84.584,3.96743118]
[1773230377165,3.12984068,84.6,84.584,3.96743118]
[1773230377560,3.12984068,84.6,84.585,1.88743118]
[1773230379869,3.12984068,84.59,84.583,2.08]
[1773230381458,11.82038208,84.6,84.583,2.08]
[1773230381459,14.95022276,84.6,84.583,2.08]
[1773230381864,3.12984068,84.59,84.583,2.08]
[1773230383683,3.12984068,84.6,84.583,2.08]
[1773230383875,3.12984068,84.6,84.583,3.96743118]
[1773230384874,0.14216157,84.63,84.584,1.88743118]
[1773230385073,3.12984068,84.6,84.584,1.88743118]
[1773230385367,3.12984068,84.6,84.585,1.88743118]
[1773230385954,3.12984068,84.6,84.586,1.88743118]
[1773230386967,3.12984068,84.61,84.586,1.88743118]
[1773230387169,3.12984068,84.61,84.588,1.88743118]
[1773230387675,3.13146984,84.61,84.588,1.88743118]
[1773230387855,3.13146984,84.61,84.59,1.88743118]
[1773230390071,3.13146984,84.6,84.572,1.88743118]
[1773230390262,3.13146984,84.6,84.574,1.88743118]
[1773230391064,11.81907362,84.609,84.557,1.88743118]
[1773230391065,0.14216157,84.608,84.557,1.88743118]
[1773230391263,0.14216157,84.605,84.558,1.88743118]
[1773230391475,3.13146984,84.58,84.558,1.88743118]
[1773230391661,3.13146984,84.58,84.56,1.88743118]
[1773230391976,3.69383402,84.617,84.559,2.08]
[1773230391977,11.82466388,84.569,84.559,2.08]
[1773230392372,0.14216157,84.599,84.56,1.88743118]
[1773230392571,3.13146984,84.58,84.561,1.88743118]
[1773230392775,3.13146984,84.58,84.563,1.88743118]
[1773230394165,3.13146984,84.58,84.565,1.88743118]
[1773230395071,11.82241394,84.586,84.565,1.88743118]
[1773230395072,11.82155373,84.592,84.565,1.88743118]
[1773230395269,29.54930726,84.605,84.567,1.88743118]
[1773230395270,11.82094619,84.596,84.567,1.88743118]
[1773230395578,11.81907362,84.609,84.571,1.88743118]
[1773230396280,3.13146984,84.65,84.581,1.88743118]
[1773230396474,3.13146984,84.64,84.601,1.88743118]
[1773230396985,0.14216157,84.642,84.603,1.88743118]
[1773230397178,3.13146984,84.63,84.602,2.08]
[1773230397381,3.13146984,84.63,84.542,1.18284403]
[1773230397382,3.13146984,84.61,84.566,1.88743118]
[1773230397568,3.13146984,84.59,84.568,1.88743118]
[1773230397773,3.13146984,84.6,84.568,1.88743118]
[1773230398375,3.13146984,84.6,84.57,1.88743118]
[1773230398569,3.13146984,84.59,84.57,1.88743118]
[1773230399868,3.13146984,84.59,84.572,1.88743118]
[1773230400184,3.13146984,84.59,84.571,11.82438424]
[1773230400481,3.13146984,84.59,84.553,29.56714202]
[1773230400482,3.13146984,84.58,84.554,11.82676159]
[1773230400785,3.13146984,84.58,84.553,31.4545732]
[1773230400786,3.13146984,84.58,84.553,1.88743118]
[1773230401085,3.13146984,84.57,84.553,1.88743118]
[1773230401283,3.13146984,84.57,84.546,1.88743118]
[1773230401885,3.13146984,84.58,84.547,1.88743118]
[1773230402785,3.13146984,84.56,84.521,1.88743118]
[1773230402971,3.13146984,84.56,84.522,1.88743118]
[1773230403166,3.13146984,84.56,84.521,41.40982713]
[1773230403167,3.13146984,84.57,84.531,1.88743118]
[1773230403371,3.13146984,84.59,84.551,1.88743118]
[1773230403586,3.13146984,84.58,84.551,1.88743118]
[1773230403790,3.13146984,84.58,84.552,1.88743118]
[1773230404083,3.13146984,84.59,84.552,1.88743118]
[1773230404677,3.13146984,84.59,84.553,2.08]
[1773230404986,3.13146984,84.59,84.554,1.88743118]
[1773230407478,3.13146984,84.59,84.556,1.88743118]
[1773230408187,3.13146984,84.58,84.556,1.88743118]
[1773230408389,3.13146984,84.59,84.558,1.88743118]
[1773230409197,3.69383402,84.608,84.561,1.88743118]
[1773230409372,3.13146984,84.6,84.573,1.88743118]
[1773230410270,0.14216157,84.617,84.573,1.88743118]
[1773230410469,3.13146984,84.6,84.575,1.88743118]
[1773230411276,41.3608915,84.621,84.575,1.88743118]
[1773230411493,14.95190414,84.6,84.575,1.88743118]
[1773230411696,29.54679059,84.612,84.577,1.88743118]
[1773230411877,3.13146984,84.6,84.577,1.88743118]
[1773230413594,3.13146984,84.59,84.569,1.88743118]
[1773230413795,3.13146984,84.58,84.561,1.88743118]
[1773230414580,3.69383402,84.609,84.561,1.88743118]
[1773230414802,3.13146984,84.6,84.563,1.88743118]
[1773230415683,11.82047069,84.599,84.565,1.88743118]
[1773230416092,3.13146984,84.6,84.571,1.88743118]
[1773230417284,3.13146984,84.6,84.573,1.88743118]
[1773230418487,3.13146984,84.59,84.564,1.88743118]
[1773230419109,41.37164741,84.599,84.552,1.88743118]
[1773230419110,3.13146984,84.57,84.552,1.88743118]
[1773230419293,3.13146984,84.58,84.552,1.88743118]
[1773230420215,3.13146984,84.57,84.544,1.88743118]